Cogmind - Beta 16 --- EXPLORER MODE // 2025.12.11 @ 10:54:56 Player: K.K.Y. Result: Destroyed by 1V-CBG(R) with Subdweller Laser Performance ------------- Evolutions (0) 0 Regions Visited (3) 600 Robots Destroyed (24) 120 Value Destroyed (602) 602 Prototype IDs (15) 300 Alien Tech Used (0) 0 Bonus (0) 0 TOTAL SCORE: 1622 Bonus ------- None Cogmind --------- Core Integrity 0/250 Matter 300/300 Energy 180/180 System Corruption 0% Temperature Cool (6) Movement Core (100) Ox1 Location -10/Subcaves Parts ------- > --- POWER (1) -------- Meta Core > --- PROPULSION (3+1) - (None) > --- UTILITY (2+1) ---- Weight Redist. System Improved Terrain Scanner (+) Targeting Computer > --- WEAPON (2+1) ----- Particle Gun Mining Claw Makeshift Spear (+) > --- INVENTORY (5) ---- High-capacity Storage Unit Light Humpback Datajack Multitool Peak State ------------ > --- POWER ------------ Meta Core > --- PROPULSION ------- Flight Unit > --- UTILITY ---------- Weight Redist. System Improved Terrain Scanner Targeting Computer > --- WEAPON ----------- Particle Gun Mining Claw Makeshift Spear > --- INVENTORY -------- High-capacity Storage Unit Particle Gun Datajack Multitool [Rating: 27] Favorites ----------- Power Meta Core Engine Light Ion Engine Power Core Meta Core Propulsion Flight Unit Wheel Wheel Flight Unit Flight Unit Utility Targeting Computer Device Weight Redist. System Processor Targeting Computer Weapon Mining Claw Energy Gun Particle Gun Ballistic Gun Assault Rifle Special Weapon Mining Laser Slashing Weapon Mining Claw Piercing Weapon Makeshift Spear Special Melee Weapon Datajack Build | -11 -10 -10 -10 ------- Run | Yrd Mat Min Sub Slots Evolved 1 | . 1 . . Power . | . . . . Propulsion 1 | . 1 . . Utility . | . . . . Weapon . | . . . . Parts Attached 24 | 7 6 6 5 Power 4 | 1 . 2 1 Engine 3 | 1 . 2 . Core 1 | . . . 1 Reactor . | . . . . Propulsion 7 | 2 3 2 . Treads . | . . . . Leg . | . . . . Wheel 2 | 2 . . . Hover . | . . . . Flight 5 | . 3 2 . Utility 4 | 2 1 . 1 Device 2 | . 1 . 1 Storage . | . . . . Processor 2 | 2 . . . Hackware . | . . . . Protection . | . . . . Artifact . | . . . . Weapon 9 | 2 2 2 3 Energy Gun 3 | 1 . 1 1 Energy Cannon . | . . . . Ballistic Gun 1 | 1 . . . Ballistic Cannon . | . . . . Launcher . | . . . . Special Weapon 1 | . 1 . . Impact Weapon . | . . . . Slashing Weapon 2 | . 1 . 1 Piercing Weapon 1 | . . . 1 Special Melee Weapon 1 | . . 1 . Unidentified Prototypes . | . . . . Parts Lost 9 | . 4 2 3 Power 1 | . . 1 . Propulsion 6 | . 2 1 3 Utility 1 | . 1 . . Weapon 1 | . 1 . . Highest Loss Streak 2 | . 2 2 2 To Critical Strikes . | . . . . Average Backups 4 | 1 3 5 4 Power . | . . . . Propulsion . | . . . . Utility 1 | . 1 2 2 Weapon 1 | . 1 3 . Tool/Special . | . . . . Unused Backups 3 | . . . 3 Power . | . . . . Propulsion . | . . . . Utility 2 | . . . 2 Weapon . | . . . . Tool/Special 1 | . . . 1 Average Slot Usage (%) 74 | . 67 90 72 Engine 3 | . 4 8 1 Core 4 | . . . 7 Wheel 2 | . 10 . . Flight 20 | . 9 32 21 Device 9 | . 6 12 10 Processor 11 | . 14 12 9 Energy Gun 8 | . 3 12 9 Ballistic Gun 2 | . 9 . . Slashing Weapon 6 | . 7 . 9 Piercing Weapon 1 | . . . 2 Special Melee Weapon 2 | . . 10 . Peak Build Rating 27 | 7 8 11 27 Average Rating 14 | 4 5 9 21 On Entrance 6 | . 7 7 11 Avg Prop Armor Cover (%) . | . . . . Naked Turns . | . . . . Heaviest Build 14 | 7 7 11 14 Greatest Support 20 | 20 20 18 14 Greatest Overweight (x) 2 | 2 . . 1 Average Overweight (x) . | . . . . Largest Inventory Capacity 5 | 5 5 5 5 Average Capacity 5 | 5 5 5 5 Most Carried 5 | 5 5 5 5 Average Carried 4 | 2 3 5 4 Final Capacity 5 | 5 5 5 5 Final Carried 5 | 2 5 5 5 Class Distribution -------------------- 100% | Hacker-Mutant Dominant Class ---------------- Hacker-Mutant | -10/Materials Hacker-Mutant | -10/Mines Hacker-Mutant | -10/Subcaves Resources | -11 -10 -10 -10 ----------- Run | Yrd Mat Min Sub Matter Collected 558 | 291 157 50 60 Remotely . | . . . . Salvage Created 894 | 163 380 125 226 Parts 46 | 10 19 5 12 Haulers Intercepted 2 | . 2 . . Recyclers Shooed 1 | 1 . . . Parts Field Recycled . | . . . . Retrieved Matter . | . . . . Parts Self-Destructed . | . . . . Prevented . | . . . . Parts Restored . | . . . . Kills | -11 -10 -10 -10 ------- Run | Yrd Mat Min Sub Combat Hostiles Destroyed 17 | . 8 4 5 Melee 5 | . 1 . 4 Guns 12 | . 7 4 1 Classes Destroyed 6 | 2 3 . 1 Tunneler 4 | 4 . . . Hauler 2 | . 2 . . Recycler 1 | 1 . . . Swarmer 4 | . 2 2 . Grunt 8 | . 6 2 . Subdweller 5 | . . . 5 Best Kill Streak 3 | 3 3 2 2 Combat Bots Only 3 | . 3 2 2 Max Kills in Single Turn 1 | 1 1 1 1 Gunslinging . | . . . . Exploded . | . . . . Melee 1 | . 1 . 1 Uniques/NPCs Destroyed . | . . . . Combat | -11 -10 -10 -10 -------- Run | Yrd Mat Min Sub Hostile Shots Fired 106 | . 53 20 33 Missed 28 | . 13 7 8 Hits 78 | . 40 13 25 Projectile 78 | . 40 13 25 Critical Strikes 1 | . . 1 . Damage Taken 721 | . 318 105 298 Core 255 | . 73 49 133 Absorbed by Shields . | . . . . Ignored by Resistances 446 | . 196 68 182 Core Remaining (%) 100 | 100 . . . Volleys Fired 63 | 7 37 14 5 Largest 2 | 2 1 1 1 Hottest 100 | 70 100 50 65 Shots Fired 70 | 14 37 14 5 Gun 66 | 14 33 14 5 Cannon . | . . . . Launcher . | . . . . Special 4 | . 4 . . Kinetic 36 | 7 29 . . Thermal 34 | 7 8 14 5 Explosive . | . . . . Electromagnetic . | . . . . Robot Hit Streak 12 | 6 12 4 8 Robot Miss Streak 2 | 1 2 1 . Penetration Max . | . . . . Secondary Targets . | . . . . Shots Hit Robots 91 | 11 48 10 22 Core Hits 40 | 6 18 7 9 Critical Kills . | . . . . Critical Parts Destroyed . | . . . . Critical Strikes 3 | . 1 2 . Burn 3 | . 1 2 . Melee Attacks 168 | . 17 . 151 Impact . | . . . . Slashing 167 | . 17 . 150 Piercing 1 | . . . 1 Sneak Attacks 1 | . 1 . . Combat Hostiles . | . . . . Follow-up Attacks 1 | . . . 1 Damage Inflicted 1661 | 152 870 146 493 Guns 748 | 152 385 146 65 Cannons . | . . . . Explosions . | . . . . Melee 865 | . 437 . 428 Ramming . | . . . . Kinetic 397 | 63 334 . . Thermal 399 | 89 99 146 65 Explosive . | . . . . Electromagnetic . | . . . . Impact . | . . . . Slashing 834 | . 437 . 397 Piercing 31 | . . . 31 Highest Corruption . | . . . . Average Corruption . | . . . . Corruption Purged . | . . . . Corruption Blocked . | . . . . Overload Shots . | . . . . Overflow Damage . | . . . . Projectiles . | . . . . Explosions . | . . . . Melee . | . . . . Knockbacks . | . . . . Impact . | . . . . Kinetic . | . . . . Secondary . | . . . . Self-Inflicted Damage . | . . . . Shots . | . . . . Rammed . | . . . . Targets Rammed . | . . . . Kicked . | . . . . Crushed . | . . . . Highest Temperature 206 | 36 57 206 . Average Temperature 55 | 17 21 109 . Received Heat Transfer 534 | . 288 105 141 Siege Activations . | . . . . Martial Activations . | . . . . Shielding Activations . | . . . . Robots Disrupted . | . . . . Combat Hostiles . | . . . . Robots Corrupted . | . . . . Combat Hostiles . | . . . . Parts Fried . | . . . . Impact Corruptions . | . . . . Robots Melted . | . . . . Combat Hostiles . | . . . . Parts Melted 7 | 1 . 6 . Heat Transferred 1321 | 259 322 592 148 Parts Sabotaged . | . . . . Parts Stolen . | . . . . Parts Stripped . | . . . . Power Chain Reactions . | . . . . Alert | -11 -10 -10 -10 ------- Run | Yrd Mat Min Sub Maximum Alert Level . | . . . . Low Security (%) 100 | 100 100 100 . Level 1 . | . . . . Level 2 . | . . . . Level 3 . | . . . . Level 4 . | . . . . Level 5 . | . . . . High Security . | . . . . Max Security . | . . . . Peak Influence 58 | 10 58 50 . Initial 2 | . 2 . . Average 10 | 2 12 9 . Influence Increases 405 | 25 250 130 . Destroy 0b10 Robot/C 240 | . 160 80 . Destroy 0b10 Robot/NC 35 | 25 10 . . Destroy Leader 64 | . 44 20 . Successful Hack 5 | . 5 . . Destroy Structure 1 | . 1 . . Partial Spotted 15 | . 15 . . Lose Combat Pursuer 45 | . 15 30 . Influence Decreases 405 | 20 255 115 15 Entered New Map 14 | . 3 . 11 Time Decay 376 | 20 242 110 4 Lost Part 15 | . 10 5 . Squads Dispatched . | . . . . Investigation . | . . . . Extermination . | . . . . Reinforcement . | . . . . Assault . | . . . . Garrison . | . . . . Intercept . | . . . . Searches Triggered . | . . . . Construction Impeded . | . . . . Haulers Reinforced . | . . . . Active Scanning Responses . | . . . . Cargo Convoy Interrupts . | . . . . Stealth | -11 -10 -10 -10 --------- Run | Yrd Mat Min Sub Distress Signals 1 | . 1 . . Communications Jammed . | . . . . Distress Signals . | . . . . Times Spotted 30 | . 13 7 10 Peak Tracking Total 5 | . 3 2 5 Tactical Retreats 3 | . 1 1 1 Traps | -11 -10 -10 -10 ------- Run | Yrd Mat Min Sub Traps Triggered 1 | . 1 . . Indirectly . | . . . . Trap Hack Attempts . | . . . . Triggered . | . . . . Disarmed . | . . . . Reprogrammed . | . . . . Reused . | . . . . Traps Extracted . | . . . . Installed . | . . . . Triggered . | . . . . Machines | -11 -10 -10 -10 ---------- Run | Yrd Mat Min Sub Machines Disabled 1 | . . . 1 Max in Single Turn 1 | . . . 1 Machines Repaired . | . . . . Machines Dismantled . | . . . . Machines Sabotaged . | . . . . Overloaded Fab Kills . | . . . . Hacking | -11 -10 -10 -10 --------- Run | Yrd Mat Min Sub Machines Accessed 7 | . 5 . 2 Terminals 4 | . 4 . . Fabricators . | . . . . Repair Stations . | . . . . Recycling Units 1 | . 1 . . Scanalyzers . | . . . . Garrison Access . | . . . . Total Hacks 15 | . 9 . 6 Successful 14 | . 8 . 6 Failed 1 | . 1 . . Catastrophic . | . . . . Database Lockouts . | . . . . Manual 6 | . 6 . . Terminals 7 | . 7 . . Fabricators . | . . . . Repair Stations . | . . . . Recycling Units 2 | . 2 . . Scanalyzers . | . . . . Garrison Access . | . . . . Terminal Hacks 9 | . 3 . 6 Record 5 | . . . 5 Prototype ID Bank 2 | . 2 . . Zone Layout 1 | . 1 . . Proto ID Catalog 1 | . . . 1 Fabricator Hacks . | . . . . Repair Station Hacks . | . . . . Recycling Unit Hacks 1 | . 1 . . Retrieve Components 1 | . 1 . . Scanalyzer . | . . . . Garrison Access Hacks . | . . . . Unauthorized Hacks 4 | . 4 . . Terminals 4 | . 4 . . Botnet 4 | . 4 . . Fabricators . | . . . . Repair Stations . | . . . . Recycling Units . | . . . . Scanalyzers . | . . . . Garrison Access . | . . . . Data Cores Recovered . | . . . . Used . | . . . . Hacking Detections 2 | . 2 . . Full Trace Events . | . . . . Feedback Events . | . . . . Feedback Blocked . | . . . . Robot Schematics Acquired . | . . . . Robots Built . | . . . . Authchips . | . . . . Time . | . . . . Total Robot Build Rating . | . . . . Part Schematics Acquired . | . . . . Parts Built . | . . . . Authchips . | . . . . Time . | . . . . Total Part Build Rating . | . . . . Part Studies Acquired . | . . . . Parts Repaired . | . . . . Time . | . . . . Parts Recycled . | . . . . Recycled Matter . | . . . . Retrieved Matter . | . . . . Retrieved Components 3 | . 3 . . Parts Scanalyzed . | . . . . Part Schematics Acquired . | . . . . Parts Damaged . | . . . . Bothacking | -11 -10 -10 -10 ------------ Run | Yrd Mat Min Sub Used RIF Installer . | . . . . Robots Hacked . | . . . . Non-combat . | . . . . Combat . | . . . . Robot Hacks Applied . | . . . . Relay Couplers Released . | . . . . Fabnet Peak Effective % . | . . . . Robots Rewired . | . . . . Allies Hacked . | . . . . Hacks Repelled . | . . . . Allies | -11 -10 -10 -10 -------- Run | Yrd Mat Min Sub Total Allies . | . . . . Largest Group . | . . . . Highest-Rated Group . | . . . . Highest-Rated Ally . | . . . . Total Orders . | . . . . Ally Attacks . | . . . . Total Damage . | . . . . Kills . | . . . . Allies Corrupted . | . . . . Allies Melted . | . . . . Intel | -11 -10 -10 -10 ------- Run | Yrd Mat Min Sub Active Infowar (turns) 171 | . . . 171 Terrain 171 | . . . 171 Robot Analysis Total . | . . . . Derelict Logs Recovered 2 | . . 1 1 Drone Launches . | . . . . Drone Recoveries . | . . . . Exploration | -11 -10 -10 -10 ------------- Run | Yrd Mat Min Sub Turns Passed 2294 | 79 622 382 1211 Spaces Moved 2643 | 43 702 815 1083 Core 49 | 36 . . 13 Treads . | . . . . Legs . | . . . . Wheels 252 | 7 245 . . Hover . | . . . . Flight 2342 | . 457 815 1070 Fastest Speed 34 | 50 37 34 34 Average Speed 50 | 99 52 34 59 Slowest Speed 150 | 150 80 37 120 Overloaded Moves . | . . . . Propulsion Burnouts . | . . . . Robots Hopped 6 | . 1 5 . Potential Cave-ins . | . . . . Cave-ins Triggered . | . . . . Exploration Rate (%) 64 | 3 99 99 58 Regions Visited 3 Branch Regions 2 Pre-discovered Areas 2 | . . . 2 Known Exits Taken 3 | 1 1 1 . Unknown Exits Taken . | . . . . Scrap Searched 8 | . . 1 7 Spaces Dug 3 | . . . 3 Terrain Destroyed 4 | . 1 . 3 Melee 3 | . . . 3 Projectile 1 | . 1 . . AOE . | . . . . Terrain Rammed . | . . . . Walls Destroyed . | . . . . Machines Disabled . | . . . . Actions | -11 -10 -10 -10 --------- Run | Yrd Mat Min Sub Total 3172 | 65 871 892 1344 Wait 249 | . 94 61 94 Move 2628 | 42 699 804 1083 Hop 6 | . 1 5 . Pick Up 22 | 9 10 . 3 Fast Attach 6 | . 1 4 1 Attach 15 | 7 6 . 2 Detach 1 | . 1 . . Swap 7 | . 2 2 3 Drop 8 | . 3 2 3 Fire 63 | 7 37 14 5 Melee 167 | . 17 . 150 Ram . | . . . . Kick . | . . . . Crush . | . . . . Escape Stasis . | . . . . Rewire . | . . . . Trap . | . . . . Miscellaneous . | . . . . Route ------- -11/Scrapyard -10/Materials (discovered 4 exits: *Mat x3 / *Min) -10/Mines (discovered 3 exits: *Mat x2 / *Sub) -10/Subcaves (discovered 1 exit: *Mat) History --------- Turn | Location | Event 4 | -11/Scrapyard | Identified exit to Materials 4 | -11/Scrapyard | Discovered exit to Materials (range 16) 80 | -11/Scrapyard | Entered Materials 80 | -10/Materials | Evolved 1 slot: Propulsion x1 302 | -10/Materials | Build established: Hacker-Mutant 307 | -10/Materials | Identified exit to Materials 307 | -10/Materials | Discovered exit to Materials (range 13) 448 | -10/Materials | Identified exit to Mines 448 | -10/Materials | Discovered exit to Mines (range 12) 619 | -10/Materials | Discovered exit to Materials (range 16) 653 | -10/Materials | Discovered exit to Materials (range 14) 702 | -10/Materials | Entered Mines 773 | -10/Mines | Found a hidden stash of uninstalled traps 881 | -10/Mines | Discovered exit to Materials (range 10) 924 | -10/Mines | Discovered exit to Materials (range 9) 939 | -10/Mines | Deemed a non-threat by the Exiles lab entrance 976 | -10/Mines | Learned Materials emergency access door positions 976 | -10/Mines | Joined a pair of Derelicts in attacking an 0b10 outpost 1082 | -10/Mines | Identified exit to Subcaves 1082 | -10/Mines | Discovered exit to Subcaves (range 6) 1084 | -10/Mines | Entered Subcaves 1088 | -10/Subcaves | Learned location of Zion (-6) 1088 | -10/Subcaves | Met a Zionite searching for "candidates" 1109 | -10/Subcaves | Visited Clippyterm 1110 | -10/Subcaves | Learned location of Extension (-4) 1110 | -10/Subcaves | Learned Factory garrison access intel 1164 | -10/Subcaves | Visited 4L-MR0's lab 1211 | -10/Subcaves | A Subdweller sparked back to life 1211 | -10/Subcaves | A Subdweller sparked back to life 1211 | -10/Subcaves | A Subdweller sparked back to life 1213 | -10/Subcaves | Core integrity fell below 50% 1233 | -10/Subcaves | Found Meta Core 1235 | -10/Subcaves | Attached Meta Core, gained temporary slots: Propulsion, Utility, Weapon 1462 | -10/Subcaves | A swath of the cavern ceiling suddenly collapsed 1870 | -10/Subcaves | Core integrity fell below 20% 1967 | -10/Subcaves | Identified exit to Materials 1967 | -10/Subcaves | Discovered exit to Materials (range 9) 2022 | -10/Subcaves | Learned Materials emergency access door positions 2269 | -10/Subcaves | Shifting Twisted Machinery released Barrage Gun 2295 | -10/Subcaves | Destroyed by 1V-CBG(R) with Subdweller Laser Last Messages --------------- 01855_ 4A-EF7(R) destroyed. 01866_ Flight Unit destroyed. 01870_ P8-F0J(R) destroyed. 01919_ 1V-CBG(R): "ECOKILL!" 01951_ Acquired Mak. Spear. 01967_ EXIT=FOUND: MATERIALS 02020_ Acquired 9 matter. 02022_ Acquired derelict log, extracted data. Data stored: Materials emergency access points. 02082_ Acquired 1 matter. 02127_ Dropped Particle Gun. 02127_ Acquired Lgt. Humpback. 02138_ Acquired 20 matter. 02241_ Flight Unit destroyed. 02261_ Mak. Spear follow-up attack on TV-1GK(R). 02266_ TV-1GK(R) destroyed. Barrage Gun falls loose from the Twisted Machinery. 02288_ 1V-CBG(R) affixes Scrap Shield Fragment to Scrap Shield. Map ----- +----------------------------------------------------+ | ?# ### #???????????????? | | ?## #????????????????? | | ??# #### ####?????????????? | | ??####??## #?????????????? | | ???###?#### ## % #?????????????? | | ??## ## ## ### % ##????????????? | | ??# #?## ##????????????? | | ??# #??## ### #????????????? | | ?? #??## #?## #????????????? | | ??? ##??# #?## #????????????? | | ???? #???# #?# % % #????????????? | | ????? #?### ##?# #?????#??????? | | ????? ## %##?# #### #????????????? | | ?#####??# %%% ### &%## ##???#??#?????? | | ## ##?## &= ## ##?#??????????? | | ##??# # % #????????????? | | #### ## %## #????????????? | | % % ######### #####????????????? | | ### #?#?????#### %# ##????????????????? | | # ## ##### #?????????## &%&####??????????????? | | # ##??###???????#?# & #??????????????? | | # ###?????##??#?## #??????????????? | | # * ##???## # # ] #??##??????????? | | # ## |%[ #??# [ *% ##??????????????? | | " "## ####????#### #" = ## #???????????????? | | # ""# ##??????????#?## [@! ##? #?????#?????????? | | " ###??????????????##R! ##?? #???????????????? | | ## #?????????????????#% " ?? #??????????????? | | ?## #???????????????? !=] ? #?????????????? | | ### ##?????????????? ### ?????????????? | | %& ####??????? ?? ####??# #????????????? | | !*" """ ???????## ???????# #????????????? | | "## " #? ????# ????????? "###???????????? | | ####### ## ##??????# ?????????? "#?????????????? | | ??????? ##??????????#??????????? #??????????????? | | ????????#???????????????????????###??????????????? | | ?????????????????????????????????????????????????? | | ?????????????????????????????????????????????????? | | ?????????????????????????????#???????????????????? | | ?????????????????????????????????????????????????? | | ?????????????????????????????????????????????????? | | ?????????????????????????????????????????????????? | | ?????????????????????????????????????????????????? | | ?????????????????????????????????????????????????? | | ?????????????????????????????????????????????????? | | ?????????????????????????????????????????????????? | | ?????????????????????????????????????????????????? | | ?????????????????????????????????????????????????? | | ?????????????????????????????????????????????????? | | ?????????????????????????????????????????????????? | +----------------------------------------------------+ Best States ------------- Heat Dissipation 25 Energy Generation 17 Energy Capacity 265 Matter Stores 300 Matter Capacity 300 Sight Range 16 Terrain Scan Range 16 Terrain Scan Density 10 Additional Mass Support 6 Resistance: KI 35 Resistance: TH 35 Resistance: EX 35 Resistance: EM 35 Resistance: I 35 Resistance: S 35 Resistance: P 35 Evasion (%) 63 Targeting Accuracy 10 Offensive Hacking 20 Item Schematics ----------------- None Robot Schematics ------------------ None Fabricated ------------ Nothing Repaired ---------- Nothing Studied --------- None Alien Tech Used ----------------- None Achievements -------------- None Challenges ------------ None Game ------ Seed AmuletHypervelocitySlayer Manual? 0 Play Time 00:23:20 Cumulative 189.3 hours Start 2025.12.11 @ 10:34:46 End 2025.12.11 @ 10:54:56 Sessions 1 Manual Loads 0 Difficulty Explorer Special Mode None Game No. 270 Rogue 0 Adventurer 0 Explorer 270 Win Type - Total 0 Types 0/0/0/0/0/0/0/0/0/0 Lore% 71 Gallery% 67 Achievement% 53 Wizard Run 0 Options --------- Layout 1 ASCII 0 Keyboard 0 Movement Mouse Keybinds 0 Fullscreen 1 Font 24/Smallcaps Map View 50x35 Zoom Use 0% Tactical HUD 1 Map Filters NONE Filters NONE Steam 1 RUN: 222a6c79-865e-4e14-80ae-194baaf98667